bitfinex-derivatives/quotes_SOLF0:USTF0_20241215
["timestamp","ask_amount","ask_price","bid_price","bid_amount"]
[1734270759531,202.0826338,220.34,220.17,2.2716]
[1734270759532,2.2709,220.25,220.17,2.2716]
[1734270759733,2.12,220.28,220.13,2.12]
[1734270759940,5.7931961,220.29,220.14,3.5575]
[1734270760138,2.12,220.28,220.15,2.12]
[1734270760331,0.32119,220.29,220.15,4.9994]
[1734270760532,2.12,220.28,220.15,4.9994]
[1734270760739,2.12,220.28,220.23,2.2711]
[1734270761338,2.12,220.28,220.15,4.9994]
[1734270761640,0.32119,220.29,220.15,4.9994]
[1734270762036,0.32119,220.29,220.24,2.2709]
[1734270765938,0.32119,220.29,220.19,5.34812803]
[1734270766241,0.32119,220.29,220.2,2.2713]
[1734270767646,2.2706,220.28,220.2,2.2713]
[1734270770641,2.2708,220.26,220.19,2.2714]
[1734270770849,2.12,220.25,220.15,5.39842434]
[1734270771046,2.12,220.24,220.15,5.39842434]
[1734270771244,2.12,220.23,220.15,5.39842434]
[1734270771449,2.12,220.22,220.15,5.39842434]
[1734270771750,2.12,220.21,220.15,7.67022434]
[1734270771948,2.12,220.2,220.15,7.67022434]
[1734270772144,2.12,220.19,220.15,7.67022434]
[1734270773546,2.12,220.19,220.15,5.39842434]
[1734270773750,2.12,220.19,220.16,2.2718]
[1734270775654,2.12,220.19,220.15,5.39842434]
[1734270775655,2.26,220.21,220.19,2.2715]
[1734270775954,2.26,220.22,220.19,2.2715]
[1734270776350,2.26,220.22,220.17,2.2716]
[1734270777551,2.26,220.22,220.18,2.2716]
[1734270778847,2.26,220.22,220.16,2.2717]
[1734270779651,2.26,220.22,220.15,5.39842434]
[1734270779854,4.5312,220.22,220.15,7.67032434]
[1734270780554,2.26,220.22,220.17,2.2717]
[1734270780758,2.26,220.22,220.15,5.39842434]
[1734270781452,2.26,220.22,220.13,2.2721]
[1734270781659,2.26,220.22,220.1,4.4263]
[1734270781952,0.32119,220.29,220.1,4.4263]
[1734270782257,2.26,220.28,220.21,2.2713]
[1734270782452,2.26,220.28,220.14,2.26]
[1734270783356,2.271,220.24,220.14,2.26]
[1734270783555,2.26,220.23,220.14,2.26]
[1734270783958,4.5311,220.23,220.16,2.2718]
[1734270784162,2.26,220.23,220.1,4.4263]
[1734270784453,2.2712,220.22,220.15,7.72490763]
[1734270785161,4.5311,220.23,220.16,2.2718]
[1734270785653,2.26,220.23,220.15,5.45310763]
[1734270786762,2.26,220.22,220.15,5.45310763]
[1734270786959,2.26,220.21,220.15,5.45310763]
[1734270787455,2.26,220.21,220.17,2.2717]
[1734270788556,2.26,220.21,220.15,7.72490763]
[1734270789664,2.2715,220.19,220.13,2.272]
[1734270790157,2.26,220.21,220.04,33.02920512]
[1734270790357,3.1059,220.2,220.04,35.28920512]
[1734270790664,4.5601,220.2,220.07,2.2727]
[1734270790963,4.5601,220.2,220.04,35.28920512]
[1734270791160,4.5601,220.2,220.04,2.26]
[1734270791866,2.272,220.15,220.09,2.2725]
[1734270792060,2.26,220.14,220.09,2.2725]
[1734270792264,2.26,220.13,220.09,2.2725]
[1734270792564,54.72507742,220.26,220.09,5.56426462]
[1734270792759,2.26,220.25,220.1,1.4704]
[1734270793160,4.531,220.25,220.17,2.2716]
[1734270793759,2.26,220.24,220.1,4.3872]
[1734270793966,2.26,220.24,220.18,2.2716]
[1734270794260,2.26,220.24,220.1,4.3872]
[1734270794460,2.26,220.24,220.21,2.2713]
[1734270794663,2.26,220.24,220.1,4.3872]
[1734270795061,2.26,220.24,220.22,2.2712]
[1734270795468,2.9559,220.28,220.22,2.2712]
[1734270795469,2.26,220.26,220.22,2.2712]
[1734270795668,2.9559,220.28,220.22,2.2712]
[1734270795866,2.26,220.27,220.23,2.2711]
[1734270796470,2.26,220.27,220.24,2.271]
[1734270796667,5.90845407,220.35,220.2,2.26]
[1734270796873,2.26,220.34,220.21,1.4784]
[1734270797874,2.2702,220.32,220.23,2.271]
[1734270798174,2.26,220.34,220.15,2.26]
[1734270798368,2.2708,220.26,220.15,2.26]
[1734270798567,2.26,220.25,220.15,2.26]
[1734270798771,2.26,220.25,220.19,2.2715]
[1734270799469,2.2711,220.23,220.16,2.2718]
[1734270800366,2.26,220.25,220.16,2.2718]
[1734270800875,2.26,220.25,220.13,2.272]
[1734270801470,2.2713,220.21,220.13,2.272]
[1734270801665,2.26,220.2,220.14,2.272]
[1734270801867,2.26,220.2,220.11,1.4544]
[1734270802071,2.26,220.2,220.14,2.2719]
[1734270802675,2.26,220.2,220.15,2.2718]
[1734270803168,2.26,220.2,220.11,1.4544]
[1734270803374,4.5314,220.2,220.11,1.4544]
[1734270804177,4.5314,220.2,220.13,2.2721]
[1734270805181,4.5314,220.2,220.11,1.4544]
[1734270805182,2.26,220.2,220.11,1.4544]
[1734270805376,2.26,220.2,220.14,2.272]
[1734270806176,2.26,220.2,220.15,2.2719]
[1734270806370,2.26,220.2,219.97,33.03680281]
[1734270806577,1.5213,220.19,219.99,1.4661]
[1734270807378,1.5213,220.19,220.06,5.56623377]
[1734270807581,2.2722,220.13,220.06,7.83903377]
[1734270807879,2.28,220.12,220.06,5.56623377]
[1734270808177,2.28,220.12,220.07,2.2727]
[1734270810380,2.28,220.12,219.99,1.4661]
[1734270810785,2.28,220.12,220.03,5.54667168]
[1734270810984,4.5523,220.12,220.04,2.273]
[1734270811887,4.5523,220.12,220.05,2.2729]
[1734270812882,2.28,220.11,220.05,2.2729]
[1734270813492,2.28,220.11,220.03,5.54667168]
[1734270813691,2.28,220.11,220.08,2.2725]
[1734270814292,2.28,220.11,220.06,2.2728]
[1734270814491,2.28,220.1,220.06,2.2728]
[1734270817093,2.28,220.1,220.03,5.54667168]
[1734270817496,2.28,220.1,220.04,2.2731]
[1734270818493,2.2724,220.11,220.04,2.2731]
[1734270818799,2.28,220.1,220.04,2.2731]
[1734270818998,2.28,220.1,220.05,2.273]
[1734270820294,2.28,220.1,220.03,5.54667168]
[1734270820295,1.5213,220.19,220.06,2.2728]
[1734270820498,2.28,220.18,220.03,5.54667168]
[1734270821306,2.2721,220.14,220.08,2.2725]
[1734270821503,2.28,220.13,220.03,5.54667168]
[1734270821695,2.2719,220.16,220.11,2.2723]
[1734270821901,2.28,220.15,220.11,2.2723]
[1734270823098,2.2719,220.16,220.11,2.2723]
[1734270823603,2.28,220.15,220.11,2.2723]
[1734270824705,2.28,220.15,220.12,2.2722]
[1734270824909,2.28,220.15,220.03,5.54667168]
[1734270826801,1.5213,220.19,220.03,5.54667168]
[1734270826802,2.2716,220.18,220.03,5.54667168]
[1734270827100,1.5213,220.19,220.03,5.54667168]
[1734270827101,2.28,220.17,220.03,5.54667168]
[1734270830009,2.272,220.15,220.03,5.54667168]
[1734270830604,2.28,220.17,220.03,5.54667168]
[1734270831707,2.28,220.17,220.04,2.273]
[1734270832011,2.28,220.17,219.99,1.4661]
[1734270832211,1.5548,220.16,219.99,1.4661]
[1734270833413,2.2725,220.1,219.99,1.4661]
[1734270833614,2.28,220.09,219.99,1.4661]
[1734270834109,4.5526,220.09,220.02,2.2733]
[1734270835408,2.28,220.09,219.99,6.98494603]
[1734270835810,2.2729,220.06,220.0,2.2734]
[1734270836513,2.2731,220.05,219.92,2.28]
[1734270836708,2.28,220.04,219.97,5.56632819]
[1734270837009,2.28,220.04,219.92,1.4537]
[1734270837315,4.5531,220.04,219.92,1.4537]
[1734270837711,2.28,220.04,219.99,2.2736]
[1734270839808,2.28,220.03,219.99,2.2736]
[1734270841209,3.0424,220.08,219.96,5.35525076]
[1734270841411,2.28,220.07,219.96,5.35525076]
[1734270841911,2.273,220.05,219.99,2.2736]
[1734270843111,2.28,220.07,219.99,2.2736]
[1734270843308,2.2729,220.06,219.99,2.2736]
[1734270844315,2.2729,220.06,219.96,5.35525076]
[1734270844517,2.2729,220.06,220.0,2.2735]
[1734270844814,2.2726,220.09,219.96,5.35525076]
[1734270845010,2.28,220.08,219.96,5.35525076]
[1734270845215,2.28,220.07,219.96,5.35525076]
[1734270845513,11.3081577,220.15,219.97,2.28]
[1734270845816,2.28,220.16,219.97,3.18921489]
[1734270846012,2.28,220.15,219.97,3.18921489]
[1734270846913,2.28,220.15,220.09,2.2725]
[1734270847308,2.28,220.15,220.03,2.28]
[1734270847518,2.28,220.15,220.04,1.4184]
[1734270848514,2.28,220.15,220.1,2.2724]
[1734270848916,2.28,220.15,220.09,2.2725]
[1734270851420,2.28,220.15,220.11,2.2723]
[1734270852919,2.28,220.15,220.12,2.2722]
[1734270853520,2.28,220.15,220.04,2.8735]
[1734270853521,2.28,220.15,220.07,2.2727]
[1734270853721,2.28,220.15,220.04,2.8735]
[1734270854121,2.28,220.15,220.07,2.2727]
[1734270854422,2.28,220.15,220.04,2.8735]
[1734270855017,2.28,220.15,220.04,1.4184]
[1734270855721,2.28,220.15,219.99,2.28]
[1734270855921,2.9433,220.14,219.99,2.28]
[1734270856118,2.2728,220.07,220.0,7.77660497]
[1734270856318,2.28,220.06,220.0,7.77660497]
[1734270856619,2.28,220.06,220.0,5.50310497]
[1734270857916,2.28,220.06,220.02,2.2732]
[1734270860925,2.28,220.06,220.01,2.2733]
[1734270861225,2.28,220.06,220.0,5.50310497]
[1734270862327,2.28,220.06,219.98,1.4844]
[1734270862522,2.28,220.06,220.0,2.2734]
[1734270862824,2.28,220.06,219.98,1.4844]
[1734270863825,2.28,220.06,220.03,2.2731]
[1734270866931,2.28,220.06,219.98,1.4844]
[1734270867229,2.28,220.06,219.97,0.90921489]
[1734270867526,2.28,220.06,219.97,3.18291489]
[1734270867527,2.2732,220.03,219.97,3.18291489]
[1734270867724,2.2732,220.03,219.97,8.71590831]
[1734270868232,2.2733,220.02,219.96,2.2739]
[1734270868432,2.2,220.01,219.96,2.2739]
[1734270868938,2.2,220.01,219.94,2.274]
[1734270868939,4.4734,220.01,219.94,2.274]
[1734270869825,2.2735,220.0,219.94,2.274]
[1734270870430,2.2735,220.0,219.95,5.54622086]
[1734270871127,4.4734,220.01,219.95,5.54622086]
[1734270872927,4.4734,220.01,219.95,7.82022086]
[1734270874439,2.2735,220.0,219.93,1.4907]
[1734270874636,2.2735,220.0,219.94,2.274]
[1734270875336,2.2,220.01,219.89,2.2746]
[1734270875938,2.2741,219.95,219.89,2.2746]
[1734270876134,2.22,219.94,219.88,2.2747]
[1734270876332,2.22,219.93,219.88,2.2747]
[1734270876540,2.22,219.92,219.88,2.2747]
[1734270876742,2.22,219.92,219.88,5.55205411]
[1734270876942,2.22,219.92,219.89,2.2746]
[1734270879737,2.22,219.92,219.88,7.82675411]
[1734270881540,2.22,219.92,219.89,2.2746]
[1734270881741,2.22,219.95,219.88,5.55205411]
[1734270882138,2.22,219.95,219.91,2.2744]
[1734270883645,2.22,219.95,219.93,2.2742]
[1734270884639,2.2737,219.99,219.93,2.2742]
[1734270884844,2.22,219.98,219.93,2.2742]
[1734270885143,2.22,219.97,219.93,2.2742]
[1734270885340,47.0014618,220.05,219.88,5.55205411]
[1734270885640,2.22,220.04,219.89,1.4377]
[1734270885848,41.58102731,220.05,219.97,2.2737]
[1734270886142,41.58102731,220.05,219.91,2.22]
[1734270886143,2.22,220.03,219.91,2.22]
[1734270886343,2.22,220.03,219.96,2.2739]
[1734270887535,2.2733,220.02,219.96,2.2739]
[1734270890542,2.22,220.01,219.96,2.2739]
[1734270890746,2.22,220.01,219.91,2.22]
[1734270890747,2.22,220.01,219.97,2.2738]
[1734270891945,2.22,220.01,219.96,2.2739]
[1734270895051,2.22,220.01,219.97,2.2737]
[1734270895251,2.22,220.04,219.91,2.22]
[1734270896347,2.22,220.04,219.98,2.2736]
[1734270896948,2.22,220.04,219.91,2.22]
[1734270897250,4.4932,220.04,219.91,2.22]
[1734270898651,4.4932,220.04,219.97,2.2738]
[1734270899555,2.2732,220.03,219.97,2.2738]
[1734270899948,2.22,220.04,219.91,2.22]
[1734270900149,2.2733,220.02,219.95,2.2739]
[1734270900357,2.2733,220.02,219.91,2.22]
[1734270900552,2.22,220.04,219.91,2.22]
[1734270900753,2.22,220.04,219.99,2.2736]
[1734270901358,2.22,220.04,219.92,2.2742]
[1734270902056,2.2736,219.99,219.88,5.55205411]
[1734270902256,2.16,219.98,219.93,2.2741]
[1734270902549,2.16,219.98,219.88,5.55205411]
[1734270902755,2.16,219.98,219.94,2.2741]
[1734270903145,2.16,219.98,219.88,5.55205411]
[1734270903355,2.2738,219.97,219.91,2.2744]
[1734270904256,2.16,219.98,219.92,2.2743]
[1734270904957,2.16,219.98,219.93,2.2742]
[1734270906663,2.16,219.98,219.88,5.55205411]
[1734270906858,2.16,220.01,219.88,5.55205411]
[1734270908258,2.16,220.01,219.96,2.2739]
[1734270908663,2.16,220.01,219.88,5.55205411]
[1734270908864,2.16,220.01,219.95,2.2739]
[1734270909460,2.16,220.01,219.88,5.55205411]
[1734270910660,2.2738,219.97,219.88,5.55205411]
[1734270910861,2.16,219.96,219.88,5.55205411]
[1734270911564,4.4339,219.96,219.91,2.2744]
[1734270915972,4.4339,219.96,219.88,5.55205411]
[1734270916174,4.4339,219.96,219.91,2.2743]
[1734270917463,2.274,219.95,219.91,2.2743]
[1734270917864,2.16,219.96,219.85,1.5376]
[1734270918066,1.5113,219.95,219.85,1.5376]
[1734270918266,2.9253,219.95,219.85,1.5376]
[1734270918977,2.2743,219.92,219.87,2.2748]
[1734270919176,2.16,219.91,219.87,2.2748]
[1734270920366,2.2743,219.92,219.87,2.2748]
[1734270920570,2.16,219.91,219.87,2.2748]
[1734270921675,2.16,219.91,219.86,2.2749]
[1734270923178,2.16,219.91,219.88,2.2747]
[1734270923877,2.16,219.91,219.87,2.2748]
[1734270924275,4.4345,219.91,219.84,2.2751]
[1734270924776,4.4345,219.91,219.79,2.16]
[1734270924977,4.4345,219.91,219.85,2.275]
[1734270925777,4.4345,219.91,219.83,2.2751]
[1734270925778,2.16,219.91,219.83,2.2751]
[1734270926874,2.2746,219.89,219.84,2.2751]
[1734270927771,2.16,219.91,219.84,2.2751]
[1734270927971,2.2745,219.9,219.84,2.2751]
[1734270928575,2.2746,219.89,219.83,2.2752]
[1734270930171,2.16,219.91,219.77,3.6145]
[1734270930377,2.2748,219.87,219.82,2.2753]
[1734270930573,2.14,219.86,219.82,2.2753]
[1734270930973,2.275,219.85,219.8,2.2755]
[1734270931380,2.275,219.85,219.77,1.4745]
[1734270931679,2.275,219.85,219.79,2.2756]
[1734270931978,2.2751,219.84,219.79,2.2756]
[1734270932880,4.415,219.86,219.79,2.2756]
[1734270933176,2.14,219.86,219.79,2.2756]
[1734270933973,2.2752,219.84,219.79,2.2756]
[1734270934277,2.14,219.86,219.77,1.4745]
[1734270935483,2.2751,219.84,219.79,2.2756]
[1734270935676,2.2751,219.84,219.77,1.4745]
[1734270936383,2.14,219.86,219.71,1.5404]
[1734270936585,2.9741,219.85,219.71,5.34610443]
[1734270936783,2.276,219.76,219.71,2.2764]
[1734270936983,2.14,219.75,219.67,1.5244]
[1734270937875,4.4161,219.75,219.68,2.2767]
[1734270938080,4.4161,219.75,219.67,1.5244]
[1734270938687,4.4161,219.75,219.68,5.47068659]
[1734270938990,2.14,219.75,219.69,2.2767]
[1734270939678,2.14,219.75,219.63,2.2773]
[1734270939679,2.2763,219.73,219.63,2.2773]
[1734270939883,2.2763,219.73,219.59,1.52]
[1734270940685,2.94,219.74,219.67,2.2769]
[1734270941084,2.14,219.73,219.67,2.2769]
[1734270943478,2.14,219.73,219.59,1.52]
[1734270943685,4.4163,219.73,219.66,2.277]
[1734270943874,2.14,219.73,219.59,1.52]
[1734270944275,2.14,219.73,219.67,2.2768]
[1734270945085,2.14,219.73,219.65,5.55109786]
[1734270945287,2.94,219.74,219.66,2.277]
[1734270945479,2.14,219.73,219.66,2.277]
[1734270945876,4.4163,219.73,219.66,2.277]
[1734270946480,2.2764,219.72,219.66,2.277]
[1734270950385,2.14,219.71,219.66,2.277]
[1734270951186,2.2764,219.72,219.67,2.2769]
[1734270951389,2.14,219.71,219.64,5.45399497]
[1734270951781,2.14,219.71,219.67,2.2769]
[1734270953786,4.4166,219.71,219.65,2.277]
[1734270953981,4.4166,219.71,219.59,1.52]
[1734270953982,2.14,219.71,219.59,1.52]
[1734270954793,2.14,219.71,219.62,5.44937307]
[1734270955891,2.14,219.71,219.66,2.2769]
[1734270956590,2.2764,219.73,219.66,2.2769]
[1734270956788,2.14,219.72,219.66,2.2769]
[1734270957690,2.14,219.72,219.67,2.2769]
[1734270959093,2.14,219.72,219.62,5.44937307]
[1734270959388,2.14,219.72,219.68,2.2767]
[1734270960498,1.4213,219.85,219.59,1.52]
[1734270960790,5.0754,219.84,219.6,2.14]
[1734270961587,2.2761,219.76,219.67,2.2769]
[1734270961791,2.14,219.75,219.65,5.33382666]
[1734270961991,2.14,219.74,219.65,5.33382666]
[1734270962192,2.14,219.73,219.65,5.33382666]
[1734270962496,2.14,219.72,219.65,5.33382666]
[1734270962696,2.14,219.71,219.65,5.33382666]
[1734270963494,2.14,219.71,219.7,2.2765]
[1734270964192,2.14,219.71,219.65,5.33382666]
[1734270965596,2.14,219.71,219.7,2.2766]
[1734270966196,5.56014665,219.79,219.7,2.2766]
[1734270966397,2.14,219.78,219.7,2.2766]
[1734270967192,2.276,219.76,219.7,2.2766]
[1734270968195,2.276,219.76,219.71,2.2764]
[1734270968596,2.14,219.75,219.65,5.33382666]
[1734270968798,2.9354,219.84,219.75,2.276]
[1734270968992,2.9354,219.84,219.66,5.1729]
[1734270968993,4.4152,219.83,219.66,5.1729]
[1734270969197,2.14,219.83,219.67,1.4793]
[1734270969392,2.14,219.83,219.71,2.2764]
[1734270969600,2.2754,219.82,219.67,1.4793]
[1734270970198,2.2754,219.82,219.75,2.276]
[1734270970404,2.14,219.81,219.75,2.276]
[1734270972405,4.4154,219.81,219.76,2.2759]
[1734270975207,4.4154,219.81,219.67,1.4793]
[1734270975407,2.14,219.81,219.77,2.2758]
[1734270975707,2.14,219.81,219.67,1.4793]
[1734270975906,2.2749,219.86,219.67,1.4793]
[1734270976105,2.14,219.85,219.67,1.4793]
[1734270976510,4.415,219.85,219.67,1.4793]
[1734270977303,2.2754,219.82,219.67,1.4793]
[1734270977908,2.9978,219.84,219.67,1.4793]
[1734270978108,5.273,219.84,219.67,1.4793]
[1734270978305,2.9978,219.84,219.67,1.4793]
[1734270978506,2.9978,219.84,219.77,2.2758]
[1734270978913,5.273,219.84,219.77,2.2758]
[1734270979111,2.9978,219.84,219.77,2.2758]
[1734270979811,2.14,219.83,219.77,2.2758]
[1734270980005,2.14,219.82,219.77,2.2758]
[1734270980812,2.14,219.82,219.78,2.2757]
[1734270982616,2.14,219.81,219.78,2.2757]
[1734270983117,2.14,219.81,219.8,2.2755]
[1734270985721,2.14,219.81,219.79,2.2756]
[1734270986123,2.14,219.81,219.71,2.14]
[1734270986324,2.14,219.81,219.8,2.2755]
[1734270986524,2.14,219.83,219.8,2.2755]
[1734270987119,7.05475825,219.89,219.8,2.2755]
[1734270987319,2.14,219.88,219.76,5.59229473]
[1734270987520,2.14,219.88,219.77,1.4996]
[1734270987922,4.4147,219.88,219.77,1.4996]
[1734270988530,2.12,219.87,219.82,2.2752]
[1734270989127,4.3948,219.87,219.82,2.2752]
[1734270993030,2.12,219.86,219.77,1.4996]
[1734270993226,2.12,219.86,219.76,5.59229473]
[1734270993733,2.12,219.86,219.78,2.2757]
[1734270994122,2.2753,219.82,219.78,2.2757]
[1734270994325,2.12,219.81,219.78,2.2757]
[1734270995828,2.12,219.81,219.76,5.59229473]
[1734270996329,2.12,219.81,219.77,2.2758]
[1734270996634,2.12,219.81,219.76,5.59229473]
[1734270997028,2.12,219.81,219.78,2.2757]
[1734270997632,2.12,219.81,219.79,2.2756]
[1734271000033,2.12,219.81,219.76,5.59229473]
[1734271000034,2.12,219.81,219.8,2.2755]
[1734271000224,1.4852,219.89,219.76,5.59229473]
[1734271000531,2.12,219.88,219.76,5.59229473]
[1734271001526,1.4852,219.89,219.76,5.59229473]
[1734271001730,2.12,219.88,219.77,1.4113]
[1734271003131,3.7599,219.89,219.83,2.2751]
[1734271003329,2.12,219.88,219.83,2.2751]
[1734271003525,2.12,219.88,219.77,1.4113]
[1734271004437,2.12,219.88,219.84,2.2751]
[1734271008234,2.2748,219.87,219.82,2.2753]
[1734271008439,2.12,219.88,219.77,1.4113]
[1734271009140,2.2751,219.84,219.79,2.2756]
[1734271009345,1.4852,219.89,219.77,1.4113]
[1734271009346,2.12,219.83,219.77,1.4113]
[1734271009839,2.12,219.83,219.81,2.2753]
[1734271015446,1.4852,219.89,219.77,1.4113]
[1734271015647,2.12,219.87,219.77,1.4113]
[1734271015843,1.529,219.92,219.77,3.5313]
[1734271015844,2.12,219.88,219.77,3.5313]
[1734271016047,2.12,219.88,219.86,2.2748]
[1734271016941,3.8033,219.92,219.86,2.2748]
[1734271017140,2.12,219.91,219.86,2.2748]
[1734271017850,3.8033,219.92,219.87,2.2748]
[1734271018051,2.12,219.91,219.77,3.5313]
[1734271018452,2.12,219.9,219.87,2.2747]
[1734271019345,1.529,219.92,219.77,3.5313]
[1734271019346,5.47222213,219.99,219.77,3.5313]
[1734271019546,2.12,219.98,219.89,2.2746]
[1734271019947,1.5125,219.99,219.89,2.2746]
[1734271020151,2.12,219.98,219.82,2.12]
[1734271020351,11.33983362,220.01,219.82,2.12]
[1734271020553,2.12,220.0,219.83,3.0529]
[1734271021053,2.12,219.99,219.83,3.0529]
[1734271021251,2.12,219.98,219.83,3.0529]
[1734271021955,2.12,219.97,219.83,3.0529]
[1734271022154,2.12,219.97,219.94,2.2741]
[1734271025257,2.12,219.97,219.93,2.2742]
[1734271028861,2.12,219.97,219.88,1.4842]
[1734271029067,4.3938,219.97,219.91,2.2743]
[1734271030062,2.12,219.97,219.88,1.4842]
[1734271030254,2.12,219.97,219.89,2.2745]
[1734271030255,2.274,219.95,219.89,2.2745]
[1734271032158,2.2741,219.94,219.88,1.4842]
[1734271032556,2.12,219.97,219.87,5.35967575]
[1734271032764,3.0172,219.96,219.84,33.8480138]
[1734271033160,2.2742,219.94,219.84,33.8480138]
[1734271033356,2.2742,219.94,219.87,2.2748]
[1734271033862,3.0172,219.96,219.87,2.2748]
[1734271034064,2.2742,219.93,219.87,2.2748]
[1734271034271,2.12,219.92,219.87,2.2748]
[1734271036565,2.12,219.92,219.88,2.2747]
[1734271038175,2.12,219.92,219.87,2.2748]
[1734271038866,2.12,219.92,219.82,2.12]
[1734271040161,2.12,219.92,219.85,2.275]
[1734271040361,2.12,219.92,219.82,2.12]
[1734271041364,2.12,219.92,219.87,5.53567714]
[1734271042566,3.0172,219.96,219.91,2.2744]
[1734271042772,2.12,219.95,219.91,2.2744]
[1734271043468,2.12,219.95,219.87,5.53567714]
[1734271043668,2.12,219.95,219.82,2.12]
[1734271043864,2.2742,219.93,219.82,2.12]
[1734271044163,2.2742,219.93,219.87,2.2747]
[1734271044760,2.2742,219.93,219.88,2.2747]
[1734271047274,2.12,219.95,219.82,2.12]
[1734271047469,2.2741,219.94,219.89,2.2746]
[1734271047772,2.12,219.95,219.89,2.2746]
[1734271047963,2.12,219.95,219.9,2.2745]
[1734271048767,4.394,219.95,219.9,2.2745]
[1734271049476,2.12,219.94,219.9,2.2745]
[1734271050569,2.274,219.95,219.9,2.2745]
[1734271050570,2.12,219.93,219.9,2.2745]
[1734271050767,2.12,219.93,219.89,2.2746]
[1734271052683,4.3942,219.93,219.88,2.2747]
[1734271053373,2.12,219.93,219.88,2.2747]
[1734271053575,2.2743,219.92,219.88,2.2747]
[1734271061878,2.12,219.93,219.88,2.2747]
[1734271062185,2.12,219.93,219.89,2.2746]
[1734271062186,4.3942,219.93,219.89,2.2746]
[1734271067088,2.2745,219.9,219.81,33.85279136]
[1734271068588,2.2745,219.9,219.85,2.2749]
[1734271068990,2.12,219.93,219.81,33.85279136]
[1734271069187,2.2746,219.89,219.84,2.2751]
[1734271069388,2.12,219.88,219.84,2.2751]
[1734271071887,4.3948,219.88,219.83,2.2752]
[1734271072188,2.12,219.88,219.81,33.85279136]
[1734271073187,2.12,219.88,219.81,39.36026763]
[1734271073387,2.12,219.88,219.83,2.2752]
[1734271074391,4.3948,219.88,219.83,2.2752]
[1734271078593,2.2748,219.87,219.83,2.2752]
[1734271080590,2.2745,219.91,219.81,33.85279136]
[1734271080791,2.12,219.9,219.81,33.85279136]
[1734271081091,2.12,219.89,219.81,33.85279136]
[1734271083495,2.12,219.89,219.87,2.2748]
[1734271084194,2.12,219.89,219.81,33.85279136]
[1734271084398,3.0172,219.96,219.81,35.97279136]
[1734271084598,2.12,219.95,219.81,35.97279136]
[1734271084899,2.12,219.95,219.85,2.275]
[1734271085090,2.12,219.94,219.86,1.5229]
[1734271085296,12.87315954,220.02,219.86,1.5229]
[1734271085492,3.5703,220.01,219.86,1.5229]
[1734271085895,2.12,220.0,219.86,1.5229]
[1734271087202,2.2736,219.99,219.86,1.5229]
[1734271087600,2.2736,219.99,219.93,2.2742]
[1734271088507,2.12,219.98,219.93,2.2742]
[1734271089205,2.12,219.97,219.93,2.2742]
[1734271089810,3.7237,220.01,219.96,2.2739]
[1734271090006,2.12,220.0,219.96,2.2739]
[1734271090512,2.12,220.0,219.98,2.2736]
[1734271090812,2.12,220.0,219.87,3.0068]
[1734271091003,5.33723893,220.07,219.87,3.0068]